bitfinex/quotes_ETHUSD_20251111
["timestamp","ask_amount","ask_price","bid_price","bid_amount"]
[1762867037607,1.259712,3549.1,3548.7,0.4867]
[1762867037775,0.663,3549.0,3548.9,0.4867]
[1762867037975,0.1809,3549.7,3549.0,0.4867]
[1762867038173,2.81761573,3549.1,3549.0,0.4867]
[1762867038406,0.663,3549.1,3549.0,0.4867]
[1762867038704,0.663,3549.1,3549.0,0.9798]
[1762867038906,0.663,3549.1,3549.0,0.4867]
[1762867040469,0.662,3549.1,3549.0,0.9798]
[1762867041210,2.81703622,3549.9,3549.0,3.79749067]
[1762867041507,0.1809,3550.6,3549.8,0.4867]
[1762867041805,0.6723,3550.6,3549.8,0.4867]
[1762867042107,0.662,3550.5,3549.9,0.4931]
[1762867042295,3.47852518,3550.5,3549.9,0.4931]
[1762867042495,2.81652518,3550.5,3549.9,0.4931]
[1762867042706,0.662,3550.4,3549.9,0.4931]
[1762867043002,0.01,3550.9,3549.9,0.4931]
[1762867043171,2.81647403,3550.6,3550.3,0.4867]
[1762867043372,0.662,3550.8,3550.3,0.4867]
[1762867043574,0.01,3550.9,3550.7,0.4867]
[1762867043818,0.01,3550.9,3550.8,0.4867]
[1762867044018,0.672,3550.9,3550.8,0.4867]
[1762867044220,0.01,3550.9,3550.8,0.4867]
[1762867044520,0.01,3550.9,3550.8,0.9798]
[1762867044521,0.672,3550.9,3550.8,0.9798]
[1762867044704,0.01,3550.9,3550.8,0.4867]
[1762867044890,0.672,3550.9,3550.8,0.4867]
[1762867046481,0.672,3550.9,3550.8,0.9646]
[1762867046482,0.01,3550.9,3550.8,0.9646]
[1762867046684,0.672,3550.9,3550.8,0.9646]
[1762867047316,0.01,3550.9,3550.8,0.9646]
[1762867047504,0.01,3550.9,3550.8,3.78086675]
[1762867048289,0.01,3550.9,3550.8,0.9646]
[1762867048930,0.01,3550.9,3550.8,3.78086675]
[1762867049643,0.01,3550.9,3550.8,8.33217315]
[1762867050002,0.01,3550.9,3550.8,0.9646]
[1762867051309,0.01,3550.9,3550.8,3.78086675]
[1762867051718,2.82745318,3551.9,3550.8,3.78086675]
[1762867051719,0.012,3551.9,3551.6,2.81558641]
[1762867052024,0.012,3551.9,3550.8,2.65797866]
[1762867052025,2.8155252,3551.8,3551.1,0.663]
[1762867052225,2.82740526,3551.9,3551.1,0.663]
[1762867052411,2.81553878,3551.8,3551.2,0.1661]
[1762867052734,0.012,3551.9,3551.2,0.1661]
[1762867053228,2.81547954,3551.8,3551.2,0.644]
[1762867053397,0.012,3551.9,3551.2,0.644]
[1762867053736,2.81561732,3551.7,3551.2,0.644]
[1762867054040,0.2052,3551.9,3551.2,0.644]
[1762867054200,2.81575983,3551.5,3551.2,0.1661]
[1762867054600,2.81575983,3551.5,3550.6,3.47942112]
[1762867054601,3.82,3551.8,3550.6,0.663]
[1762867054799,0.4781,3551.7,3550.6,1.1409]
[1762867055036,2.81600042,3551.2,3550.6,1.1409]
[1762867055282,3.47974572,3551.5,3550.2,0.1699]
[1762867055425,2.81579095,3551.4,3550.2,0.6478]
[1762867055599,2.81615888,3551.0,3550.2,0.6478]
[1762867055803,0.4781,3551.4,3550.3,3.29453252]
[1762867056003,2.81615751,3551.0,3550.3,3.29456174]
[1762867056204,2.81535751,3551.0,3550.3,3.29456174]
[1762867056404,2.81627799,3550.8,3550.3,0.4779]
[1762867056609,0.4781,3551.2,3550.3,0.4779]
[1762867056806,2.81631796,3550.8,3550.3,0.4779]
[1762867057206,2.8162927,3550.8,3550.3,0.4779]
[1762867057654,0.4781,3551.2,3550.3,0.4779]
[1762867058137,2.81629634,3550.8,3550.3,0.4779]
[1762867058341,2.81634663,3550.7,3550.3,0.4779]
[1762867058523,2.81643837,3550.6,3550.3,0.4779]
[1762867058717,2.81659207,3550.4,3550.0,0.1699]
[1762867058944,2.81648205,3550.6,3550.0,0.6478]
[1762867059163,2.81649942,3550.6,3550.3,0.4542]
[1762867059333,2.81652261,3550.5,3550.3,0.4542]
[1762867059679,2.81635148,3550.7,3550.0,0.6478]
[1762867059680,0.6713,3550.9,3550.0,0.1699]
[1762867059861,3.48752762,3550.9,3550.0,0.1699]
[1762867060034,2.81673547,3550.3,3550.0,0.1699]
[1762867060964,2.81655305,3550.5,3549.8,0.1699]
[1762867060965,1.1411,3550.5,3549.8,0.1699]
[1762867061164,0.455,3549.9,3549.1,0.4879]
[1762867061351,1.118,3549.9,3549.1,0.01]
[1762867061553,2.8172395,3549.6,3549.1,0.01]
[1762867061870,1.3053,3549.9,3549.1,0.01]
[1762867062065,2.81744053,3549.4,3549.1,0.01]
[1762867062435,2.81685917,3550.1,3549.1,0.01]
[1762867062436,0.663,3549.7,3549.3,0.4542]
[1762867062800,0.664,3549.7,3549.5,0.4542]
[1762867062957,2.8174614,3549.3,3549.1,0.01]
[1762867063159,0.664,3549.7,3549.1,0.01]
[1762867063160,3.27253634,3549.2,3549.1,0.01]
[1762867063470,0.664,3549.2,3549.1,0.01]
[1762867063672,3.93653634,3549.2,3549.1,0.01]
[1762867064562,3.48153634,3549.2,3549.1,0.01]
[1762867064761,0.664,3549.2,3549.1,0.01]
[1762867064960,0.664,3549.2,3549.1,0.6379]
[1762867065574,0.6713,3549.9,3549.1,0.6379]
[1762867065575,0.664,3549.7,3549.1,0.6379]
[1762867065775,0.1932,3549.9,3549.1,1.1158]
[1762867065966,0.664,3549.6,3549.1,1.1158]
[1762867066145,2.81729826,3549.5,3549.1,1.1158]
[1762867066344,2.81729826,3549.5,3549.2,0.4779]
[1762867066558,3.48124892,3549.6,3549.4,0.4542]
[1762867066750,2.81729821,3549.5,3549.4,0.4542]
[1762867067152,2.81753634,3549.2,3549.1,0.01]
[1762867067351,3.27233018,3549.5,3549.1,0.01]
[1762867067685,0.664,3549.6,3549.4,0.4542]
[1762867067859,2.81721884,3549.6,3549.5,0.4542]
[1762867068060,0.664,3549.8,3549.1,0.01]
[1762867068382,2.81750664,3549.3,3549.1,0.01]
[1762867068588,2.8173846,3549.4,3549.1,0.01]
[1762867068763,2.8173846,3549.4,3549.2,0.4542]
[1762867068963,2.8173846,3549.4,3549.3,0.4542]
[1762867069576,0.664,3549.8,3549.3,0.4542]
[1762867069577,2.81735955,3549.5,3549.3,0.4542]
[1762867069780,0.664,3549.8,3549.3,0.4542]
[1762867069983,2.81742614,3549.4,3549.1,0.4879]
[1762867070186,0.664,3549.8,3549.1,0.4879]
[1762867070187,2.81752199,3549.3,3549.1,0.4879]
[1762867070590,2.81752199,3549.3,3549.2,0.4542]
[1762867071376,2.81745696,3549.3,3549.2,0.4542]
[1762867071956,2.81753634,3549.2,3549.1,0.01]
[1762867075002,2.8174593,3549.3,3549.1,0.6379]
[1762867075183,3.48035098,3549.5,3549.1,0.6616]
[1762867075513,2.81744005,3549.4,3549.2,0.4542]
[1762867075808,4.07665973,3550.0,3549.2,0.4542]
[1762867075809,0.6689,3550.9,3549.7,2.81712255]
[1762867075970,0.452,3550.8,3549.8,0.4608]
[1762867076172,2.8166083,3550.4,3549.8,0.4608]
[1762867076591,2.81663619,3550.4,3549.8,0.4608]
[1762867076795,2.81647138,3550.6,3549.8,0.4608]
[1762867076996,3.48512929,3550.9,3550.5,0.4995]
[1762867076997,0.002,3550.9,3550.5,0.4995]
[1762867077202,0.663,3550.8,3550.5,0.6694]
[1762867077574,3.48120558,3550.9,3550.5,0.6694]
[1762867077775,0.665,3550.9,3550.5,0.6694]
[1762867077984,3.48123433,3550.9,3550.5,0.6694]
[1762867078190,3.48121687,3550.9,3550.5,0.6694]
[1762867078509,0.665,3550.9,3550.8,0.4995]
[1762867078675,0.002,3550.9,3550.8,0.9976]
[1762867080211,0.0012,3550.9,3550.8,0.9976]
[1762867081415,0.0012,3550.9,3550.8,5.47908275]
[1762867081621,0.002,3551.3,3551.2,1.259712]
[1762867081790,0.002,3551.3,3551.2,2.422212]
[1762867081994,0.002,3551.3,3551.2,5.73626153]
[1762867082409,0.002,3551.3,3551.2,6.14176553]
[1762867082580,0.002,3551.3,3551.2,10.59477286]
[1762867082782,0.012,3551.9,3551.7,4.07526511]
[1762867083115,0.002,3552.3,3552.2,1.259712]
[1762867083433,0.002,3552.3,3552.2,2.425212]
[1762867083634,0.002,3552.3,3552.2,5.7384688]
[1762867083982,0.002,3552.3,3552.2,2.923312]
[1762867084179,0.002,3552.3,3552.2,0.4995]
[1762867084735,0.002,3552.3,3552.2,3.8127568]
[1762867084938,0.002,3552.3,3552.2,5.4779728]
[1762867085650,0.002,3552.3,3552.2,5.90320881]
[1762867087487,0.01,3552.9,3552.6,4.48005583]
[1762867087692,0.01,3552.9,3552.6,10.52379917]
[1762867087892,0.01,3552.9,3552.6,10.59666316]
[1762867088134,0.01,3552.9,3552.6,11.02189917]
[1762867088483,0.0062,3552.9,3552.8,4.97939737]
[1762867088684,0.0062,3552.9,3552.8,6.37184707]
[1762867088898,0.0062,3552.9,3552.8,5.90273338]
[1762867089593,0.0062,3552.9,3552.8,6.11273338]
[1762867089801,0.0062,3552.9,3552.8,5.68749737]
[1762867090000,0.0062,3552.9,3552.8,6.35349737]
[1762867090199,0.0062,3552.9,3552.8,3.133312]
[1762867090438,0.0062,3552.9,3552.1,4.45300733]
[1762867090439,0.0062,3552.9,3552.2,0.4981]
[1762867090737,0.0062,3552.9,3552.8,0.4995]
[1762867090908,0.0062,3552.9,3552.3,0.21]
[1762867091094,0.2001,3552.9,3552.3,0.668]
[1762867091427,3.01470332,3552.9,3552.3,0.668]
[1762867091626,0.2001,3552.9,3552.3,0.668]
[1762867091807,2.81480232,3552.7,3552.3,0.668]
[1762867092126,2.81489391,3552.6,3552.0,0.668]
[1762867092331,0.0062,3552.9,3552.0,0.668]
[1762867092531,0.0062,3552.9,3552.1,5.35661133]
[1762867092871,0.0062,3552.9,3552.4,0.405504]
[1762867093138,0.0062,3552.9,3551.8,2.81547384]
[1762867093139,2.81477726,3552.7,3551.8,2.81547384]
[1762867093437,3.0147096,3552.9,3551.7,1.757812]
[1762867093438,2.81484925,3552.6,3551.9,0.669]
[1762867093605,2.81469776,3552.8,3551.1,0.1661]
[1762867093606,2.81529199,3552.1,3551.1,0.6642]
[1762867093804,2.81529199,3552.1,3551.4,0.669]
[1762867094215,2.81529199,3552.1,3551.5,1.259712]
[1762867094611,2.81526483,3552.1,3551.4,3.48478166]
[1762867094852,0.496,3552.5,3551.5,2.81564907]
[1762867095056,2.81499831,3552.4,3551.5,2.81564907]
[1762867095264,2.81499831,3552.4,3551.4,0.669]
[1762867095265,2.81515916,3552.2,3551.4,0.669]
[1762867095397,0.496,3552.5,3551.4,0.669]
[1762867095398,0.496,3552.5,3551.5,0.4981]
[1762867095834,2.81527488,3552.1,3551.4,3.48477648]
[1762867096020,2.81517104,3552.2,3551.5,2.81568291]
[1762867096355,0.496,3552.5,3551.4,0.669]
[1762867096762,2.81509636,3552.3,3551.6,2.81557197]
[1762867096961,2.81509636,3552.3,3552.1,0.001]
[1762867097267,2.81501833,3552.4,3552.1,0.001]
[1762867097417,0.496,3552.4,3552.1,0.001]
[1762867097615,3.3052568,3552.2,3552.1,0.001]
[1762867098016,3.8012568,3552.2,3552.1,0.001]
[1762867098645,7.6212568,3552.2,3552.1,0.001]
[1762867098810,3.82,3552.2,3552.1,0.001]
[1762867099014,3.82,3552.2,3552.1,0.5005]
[1762867099227,3.82,3552.2,3552.1,0.001]
[1762867099654,4.3101,3552.2,3552.1,0.001]
[1762867099873,3.82,3552.2,3552.1,3.81383605]
[1762867100181,3.82,3552.2,3552.1,1.404104]
[1762867100455,3.82,3552.2,3552.1,4.21934005]
[1762867100632,3.82,3552.2,3552.1,0.001]
[1762867101035,0.4901,3552.2,3552.1,0.001]
[1762867101553,7.6212568,3552.2,3552.1,0.001]
[1762867102641,4.8061,3552.2,3552.1,0.001]
[1762867102844,7.6212568,3552.2,3552.1,0.001]
[1762867103557,4.8061,3552.2,3552.1,0.001]
[1762867103759,7.6212568,3552.2,3552.1,0.001]
[1762867104288,7.6204568,3552.2,3552.1,0.001]
[1762867104432,8.8801688,3552.2,3552.1,0.001]
[1762867105241,8.8801688,3552.2,3551.8,0.001]
[1762867105242,2.81539457,3551.9,3551.8,0.001]
[1762867105442,4.37670657,3551.9,3551.8,0.001]
[1762867105640,2.81571167,3551.5,3551.4,0.001]
[1762867105947,5.19592367,3551.5,3551.4,0.001]
[1762867106281,5.65062367,3551.5,3551.4,0.001]
[1762867106877,4.39091167,3551.5,3551.4,0.001]
[1762867108733,0.4525,3551.5,3551.4,0.001]
[1762867108967,2.81570349,3551.6,3551.4,0.001]
[1762867109169,2.81555938,3551.7,3551.4,0.001]
[1762867109470,2.81563767,3551.6,3551.4,0.001]
[1762867109629,0.4547,3551.8,3551.4,0.001]
[1762867109834,3.82,3551.7,3551.4,0.001]
[1762867110033,6.635563,3551.7,3551.4,0.001]
[1762867110588,6.63557331,3551.7,3551.4,0.001]
[1762867111076,6.63562768,3551.7,3551.4,0.001]
[1762867111691,3.82,3551.7,3551.4,0.001]
[1762867112554,2.81563904,3551.6,3551.4,0.001]
[1762867112954,6.63557603,3551.7,3551.4,0.001]
[1762867113160,2.81571167,3551.5,3551.4,0.001]
[1762867113376,3.26821167,3551.5,3551.4,0.001]
[1762867113579,7.54291167,3551.5,3551.4,0.001]
[1762867115865,7.08821167,3551.5,3551.4,0.001]
[1762867116074,7.75521167,3551.5,3551.4,0.001]
[1762867116268,8.20991167,3551.5,3551.4,0.001]
[1762867116907,7.54291167,3551.5,3551.4,0.001]
[1762867117110,8.20991167,3551.5,3551.4,0.001]
[1762867117292,7.54291167,3551.5,3551.4,0.001]
[1762867117500,8.20991167,3551.5,3551.4,0.001]
[1762867118819,6.63502883,3551.1,3551.0,0.001]
[1762867120774,7.08752883,3551.1,3551.0,0.001]
[1762867120977,3.819,3551.1,3551.0,0.001]
[1762867121307,3.819,3551.1,3551.0,0.4704]
[1762867122368,2.81486029,3552.6,3551.1,3.22153283]
[1762867122574,2.81540643,3551.9,3551.5,0.4694]
[1762867122773,3.48091907,3552.5,3551.5,0.4694]
[1762867122774,2.81534446,3552.0,3551.5,0.4694]
[1762867122977,2.815629,3551.7,3551.2,0.1661]
[1762867123181,2.81547384,3551.8,3551.2,0.1661]
[1762867123480,2.81568766,3551.6,3551.2,0.1661]
[1762867123684,2.81570513,3551.6,3551.2,0.1661]
[1762867124501,0.1849,3551.9,3551.2,0.1661]
[1762867124704,2.81632195,3553.3,3551.4,2.81578684]
[1762867124705,2.81537003,3552.0,3551.4,2.81578684]
[1762867124909,0.666,3552.2,3551.3,0.4886]
[1762867125216,2.81548184,3551.8,3551.3,0.4886]
[1762867125511,2.81523605,3552.1,3551.3,0.4886]
[1762867125682,0.666,3552.2,3551.3,0.4886]
[1762867125683,2.81531531,3552.0,3551.4,2.81578421]
[1762867125884,2.81541,3551.9,3551.3,3.30444121]
[1762867126080,2.81535038,3552.0,3551.4,2.81578767]
[1762867126279,2.81539822,3551.9,3551.3,3.30443491]
[1762867126729,0.666,3552.2,3551.3,0.4886]
[1762867127106,2.81550276,3551.8,3551.3,0.4886]
[1762867127302,0.666,3552.2,3551.3,0.4886]
[1762867127482,2.81554892,3551.8,3551.3,0.4886]
[1762867128013,0.666,3552.2,3551.3,0.4886]
[1762867128220,0.6652,3552.2,3551.3,0.4886]
[1762867128521,0.6652,3552.2,3551.2,0.1661]
[1762867128879,2.81560107,3551.7,3551.2,0.1661]
[1762867129288,0.4547,3552.1,3551.2,0.1661]
[1762867129289,0.1849,3551.9,3551.2,0.1661]
[1762867129502,3.00035358,3551.9,3551.3,2.81586003]
[1762867129703,2.81551051,3551.8,3551.2,2.98204175]
[1762867129889,2.8155223,3551.8,3551.2,2.98204202]
[1762867130188,2.8155223,3551.8,3551.2,3.73204046]
[1762867130388,2.8155223,3551.8,3551.2,0.1661]
[1762867130389,2.81567615,3551.6,3551.2,0.1661]
[1762867130631,0.4547,3552.1,3551.2,0.1661]
[1762867130632,2.81534427,3552.0,3551.2,0.1661]
[1762867130883,0.4547,3552.1,3551.5,0.4694]
[1762867131184,2.81493839,3552.5,3552.0,0.4694]
[1762867131471,0.664,3552.6,3551.5,0.4886]
[1762867131472,3.47885969,3552.6,3552.1,0.4694]
[1762867131764,2.81504848,3552.4,3552.1,0.4694]
[1762867131924,2.81492483,3552.5,3552.1,0.6401]
[1762867132121,2.8151568,3552.2,3552.1,0.6401]
[1762867132662,0.664,3552.6,3552.1,0.6401]
[1762867132822,2.81512975,3552.3,3552.1,0.6401]
[1762867133020,0.664,3552.6,3552.1,0.6401]
[1762867133268,2.8150508,3552.4,3552.2,0.4694]
[1762867133571,0.6568,3552.9,3552.5,0.4694]
[1762867133572,0.0082,3552.9,3552.5,0.4694]
[1762867133865,2.81476092,3552.7,3552.5,0.4694]
[1762867134062,2.81478468,3552.7,3552.5,0.958]
[1762867134310,6.63368743,3552.8,3552.1,0.6593]
[1762867134458,0.002,3552.6,3552.1,0.6593]
[1762867134784,0.002,3552.6,3552.1,2.98587246]
[1762867134988,0.002,3552.6,3552.5,0.4694]
[1762867135357,2.81683983,3552.6,3552.5,0.4694]
[1762867135750,2.81683983,3552.6,3552.1,0.1707]
[1762867135751,2.8151568,3552.2,3552.1,0.1707]
[1762867135955,2.81512775,3552.3,3552.1,0.1707]
[1762867136193,2.81512775,3552.3,3552.1,0.6665]
[1762867136390,2.81515893,3552.2,3551.9,0.664]
[1762867136570,2.81527297,3552.1,3551.9,0.664]
[1762867136774,0.4917,3552.5,3551.9,0.664]
[1762867136775,2.81531531,3552.0,3551.9,0.664]
[1762867136968,0.4555,3552.0,3551.6,0.74999844]
[1762867137314,0.161,3551.8,3551.4,0.74999844]
[1762867137489,3.27121167,3551.5,3551.4,0.74999844]
[1762867137805,0.1803,3551.9,3551.1,0.001]
[1762867137806,0.4917,3551.8,3551.1,0.91709844]
[1762867138035,0.4917,3551.8,3551.1,0.1671]
[1762867138593,2.81580491,3551.4,3551.1,0.1671]
[1762867138773,2.81578095,3551.5,3551.1,0.1671]
[1762867139089,0.1803,3551.9,3551.1,0.1671]
[1762867139800,1.259712,3552.3,3551.1,0.1671]
[1762867139801,0.664,3552.2,3551.8,0.4721]
[1762867140162,2.81531531,3552.0,3551.8,0.4721]
[1762867140562,0.664,3552.2,3551.9,0.4721]
[1762867140761,2.81531531,3552.0,3551.9,0.4721]
[1762867140964,0.4555,3552.0,3551.5,0.664]
[1762867141185,3.27081948,3552.0,3551.5,0.664]
[1762867141388,2.81552686,3551.8,3551.5,0.664]
[1762867141703,2.81576582,3551.5,3551.2,0.74999844]
[1762867141902,2.81573429,3551.5,3551.1,1.38509844]
[1762867142117,2.81573429,3551.5,3551.4,0.4721]
[1762867142263,0.664,3551.9,3551.4,0.4721]
[1762867142466,0.1803,3552.3,3551.2,0.468]
[1762867142467,0.663,3552.1,3551.2,0.74999844]
[1762867142795,2.81561678,3551.7,3551.1,0.91709844]
[1762867143106,0.663,3552.0,3551.1,0.91709844]
[1762867143107,2.81571707,3551.5,3551.1,0.91709844]
[1762867143309,2.81561241,3551.7,3551.1,0.91709844]
[1762867143605,2.81561241,3551.7,3551.4,0.4721]
[1762867143770,2.81548899,3551.8,3551.4,0.4721]
[1762867143972,3.47836682,3552.0,3551.4,0.4721]
[1762867144381,0.663,3552.0,3551.1,0.91709844]
[1762867144587,2.81576779,3551.5,3551.1,0.75099844]
[1762867144782,2.81590298,3551.3,3551.1,0.001]
[1762867145413,2.81594953,3551.2,3551.1,0.001]
[1762867145823,0.4917,3551.4,3551.1,0.001]
[1762867146125,3.30749788,3551.4,3551.1,0.001]
[1762867146292,2.81587024,3551.3,3551.1,0.001]
[1762867146491,2.81594953,3551.2,3551.1,0.001]
[1762867146790,3.27144953,3551.2,3551.1,0.001]
[1762867146991,3.76314953,3551.2,3551.1,0.001]
[1762867147522,0.663,3551.7,3551.1,1.1072]
[1762867147689,0.663,3551.7,3551.3,0.4721]
[1762867147888,0.4917,3552.0,3551.3,0.4721]
[1762867148092,2.81525816,3552.1,3551.3,0.9401]
[1762867148426,3.819,3552.2,3551.3,0.9401]
[1762867148613,2.8155469,3551.8,3551.3,0.4721]
[1762867149335,7.1258587,3552.2,3551.3,0.4721]
[1762867149515,2.81560572,3551.7,3551.3,0.4721]
[1762867150204,1.1547,3552.1,3551.3,0.4721]
[1762867150404,2.81552466,3551.8,3551.3,0.4721]
[1762867150613,1.1547,3552.1,3551.3,0.4721]
[1762867150614,2.81546662,3551.9,3551.3,0.4721]
[1762867150831,2.81528418,3552.1,3551.4,3.28372817]
[1762867150999,2.81528418,3552.1,3551.8,0.4721]
[1762867151338,2.81523605,3552.1,3551.8,0.4721]
[1762867151550,6.63616373,3552.2,3551.8,0.4721]
[1762867151551,3.819,3552.0,3551.8,0.4721]
[1762867151700,3.819,3552.0,3551.9,0.468]
[1762867152014,3.819,3552.0,3551.9,0.9401]
[1762867152193,3.8182,3552.0,3551.9,0.4721]
[1762867153737,3.8182,3552.0,3551.8,0.662]
[1762867153940,3.27089457,3551.9,3551.8,0.662]
[1762867154138,3.27089457,3551.9,3551.6,0.74999844]
[1762867154139,2.81554115,3551.8,3551.6,0.74999844]
[1762867154533,1.1275,3551.9,3551.5,0.74999844]
[1762867154534,0.672,3551.9,3551.5,0.74999844]
[1762867154733,2.81552403,3551.8,3551.5,0.74999844]
[1762867155258,2.81552403,3551.8,3551.3,2.26490077]
[1762867155259,0.4555,3551.6,3551.3,0.74999844]
[1762867155459,3.8182,3551.7,3551.1,0.001]
[1762867155460,2.81594953,3551.2,3551.1,0.001]
[1762867155767,7.08684953,3551.2,3551.1,0.001]
[1762867155962,4.2709,3551.2,3551.1,0.001]
[1762867156164,4.2737,3551.2,3551.1,0.001]
[1762867156469,3.8182,3551.2,3551.1,0.001]
[1762867157163,3.8182,3551.2,3551.1,0.4731]
[1762867157327,3.8182,3551.2,3551.1,8.47200619]
[1762867157532,3.8182,3551.2,3551.1,8.87751019]
[1762867158160,3.8182,3551.2,3551.1,1.1072]
[1762867158361,3.8182,3551.2,3551.1,3.45522883]
[1762867158561,3.8182,3551.2,3551.1,0.6392]
[1762867158762,3.8182,3551.2,3551.1,3.92322883]
[1762867159136,3.8182,3551.2,3551.1,1.86576641]
[1762867159332,7.08964953,3551.2,3551.1,0.001]
[1762867159531,4.2737,3551.2,3551.1,0.001]
[1762867159770,3.8182,3551.2,3551.1,0.001]
[1762867159972,7.08964953,3551.2,3551.1,0.001]
[1762867160162,7.58134953,3551.2,3551.1,0.001]
[1762867163235,4.7654,3551.2,3551.1,0.001]
[1762867163440,7.58134953,3551.2,3551.1,0.001]
[1762867164752,4.2737,3551.2,3551.1,0.001]
[1762867164954,6.63414953,3551.2,3551.1,0.001]
[1762867165176,7.58134953,3551.2,3551.1,0.001]
[1762867165375,7.08964953,3551.2,3551.1,0.001]
[1762867165675,7.75164953,3551.2,3551.1,0.001]
[1762867166454,8.23244953,3551.2,3551.1,0.001]
[1762867168773,15.83216153,3551.2,3551.1,0.001]
[1762867168973,16.09222497,3551.2,3551.1,0.001]
[1762867170702,15.43022497,3551.2,3551.1,0.001]
[1762867170908,16.09222497,3551.2,3551.1,0.001]
[1762867172375,2.81618744,3550.9,3550.8,0.001]
[1762867172575,10.19324024,3550.9,3550.8,0.001]
[1762867172801,10.67404024,3550.9,3550.8,0.001]
[1762867173405,16.35204024,3550.9,3550.8,0.001]
[1762867173613,12.46526288,3550.9,3550.8,0.001]
[1762867173776,15.61946288,3550.9,3550.8,0.001]
[1762867173975,16.28246288,3550.9,3550.8,0.001]
[1762867174808,15.61946288,3550.9,3550.8,0.001]
[1762867175013,16.28246288,3550.9,3550.8,0.001]
[1762867175305,16.02239944,3550.9,3550.8,0.001]
[1762867175909,16.28200879,3550.9,3550.8,0.001]
[1762867176413,16.02159944,3550.9,3550.8,0.001]
[1762867177092,16.28109325,3550.9,3550.8,0.001]
[1762867177493,16.02159944,3550.9,3550.8,0.001]
[1762867178181,15.35859944,3550.9,3550.8,0.001]
[1762867178381,16.02159944,3550.9,3550.8,0.001]
[1762867178610,16.02159944,3550.9,3550.1,0.01]
[1762867178611,3.8112,3550.2,3550.1,0.01]
[1762867178916,3.8112,3550.2,3550.1,0.4885]
[1762867179115,3.8112,3550.2,3550.1,1.1115]
[1762867179632,3.8112,3550.2,3550.1,3.92832206]
[1762867179916,3.8112,3550.2,3550.1,1.1115]
[1762867182401,3.8112,3550.2,3550.1,3.92832206]
[1762867184084,3.8112,3550.2,3550.1,1.1115]
[1762867184279,3.8112,3550.2,3550.1,3.92832206]
[1762867184725,3.8112,3550.2,3550.1,1.1115]
[1762867185096,3.8112,3550.2,3550.1,3.92832206]
[1762867186953,3.8112,3550.2,3550.1,3.92932206]
[1762867187415,3.8112,3550.2,3550.1,4.33482606]
[1762867187629,3.8112,3550.8,3550.7,2.81634607]
[1762867187984,3.8112,3550.8,3550.7,3.74754607]
[1762867190228,3.8112,3550.8,3550.7,4.15305007]
[1762867190407,3.8112,3550.8,3550.7,5.41276207]
[1762867191042,0.002,3550.9,3550.8,4.48148275]
[1762867191218,0.002,3550.9,3550.8,6.82119126]
[1762867191542,0.002,3550.9,3550.8,5.41268275]
[1762867191742,0.002,3550.9,3550.8,7.32018857]
[1762867191912,0.002,3550.9,3550.8,6.9226739]
[1762867192450,0.002,3550.9,3550.8,5.41268275]
[1762867194517,0.002,3550.9,3550.8,6.42225704]
[1762867194717,0.002,3550.9,3550.8,5.41268275]
[1762867195020,0.002,3550.9,3550.8,6.42225704]
[1762867195221,0.002,3550.9,3550.8,0.858204]
[1762867195451,0.002,3550.9,3550.8,2.596416]
[1762867195660,0.002,3550.9,3550.8,5.41268275]
[1762867199166,0.002,3550.9,3550.8,0.4527]
[1762867199331,0.002,3550.9,3550.8,3.75706675]
[1762867200017,0.002,3550.9,3550.8,0.4527]
[1762867200215,0.0012,3550.9,3550.8,0.661]
[1762867200659,0.4698,3550.9,3550.8,0.661]
[1762867200958,3.8124,3550.9,3550.8,3.94326675]
[1762867201259,3.8124,3550.9,3550.8,1.127]
[1762867201618,3.8124,3550.9,3550.8,0.661]
[1762867201850,4.281,3550.9,3550.8,0.661]
[1762867202039,4.281,3550.9,3550.3,0.661]
[1762867202418,4.281,3550.9,3550.4,2.81658404]
[1762867202829,7.58061008,3550.9,3550.3,3.47763254]
[1762867203058,4.281,3550.9,3550.3,1.1491]
[1762867203230,3.8124,3550.9,3550.8,0.466]
[1762867203551,3.8124,3550.9,3550.6,2.81642242]
[1762867203751,3.8124,3550.9,3550.4,0.661]
[1762867203974,4.2946,3550.8,3550.4,0.661]
[1762867204140,0.4686,3550.5,3550.4,0.661]
[1762867204343,3.8112,3550.8,3550.4,3.47756816]
[1762867204675,3.8112,3550.8,3550.4,3.94353557]
[1762867205984,3.8132,3550.8,3550.4,3.94353557]
[1762867206758,3.8132,3550.8,3550.4,0.661]
[1762867206976,0.4834,3550.7,3550.4,0.661]
[1762867207195,0.4686,3550.5,3550.4,0.661]
[1762867207654,4.2798,3550.5,3550.3,0.001]
[1762867207855,3.8112,3550.4,3550.3,0.001]
[1762867208083,3.8112,3550.4,3550.3,3.30576338]
[1762867208270,3.8112,3550.4,3550.3,4.43276338]
[1762867209255,3.8112,3550.4,3550.3,3.94466338]
[1762867210907,3.8112,3550.4,3550.3,4.43276338]
[1762867212996,3.8112,3550.4,3550.3,6.8547187]
[1762867213194,0.002,3550.8,3550.7,3.22185007]
[1762867213394,0.002,3550.8,3550.7,10.06233131]
[1762867213721,0.002,3550.8,3550.7,11.5614108]
[1762867213916,0.002,3550.8,3550.7,10.55043131]
[1762867214214,0.002,3550.8,3550.7,5.20305807]
[1762867216005,0.4706,3550.8,3550.7,1.920712]
[1762867216324,0.002,3550.8,3550.7,6.12482553]
[1762867216467,0.002,3550.8,3550.7,6.09666207]
[1762867218269,3.8132,3550.8,3550.7,6.09666207]
[1762867221677,3.8132,3550.8,3550.7,6.94240074]